bitfinex-derivatives/quotes_SOLF0:USTF0_20250714
["timestamp","ask_amount","ask_price","bid_price","bid_amount"]
[1752503177887,196.9481152,167.15,167.04,6.6881152]
[1752503178690,6.6881152,167.13,167.02,6.6881152]
[1752503178987,6.6881152,167.14,167.04,6.6881152]
[1752503179390,190.26,167.15,167.04,6.6881152]
[1752503179889,6.6881152,167.13,167.02,5.9855]
[1752503180084,24.5481152,167.13,167.01,6.6881152]
[1752503180583,6.6881152,167.11,167.01,6.6881152]
[1752503180889,6.6881152,167.11,166.95,4.90565909]
[1752503181084,24.5481152,167.11,166.99,6.6881152]
[1752503181383,24.5481152,167.11,167.0,5.9863]
[1752503181687,24.5481152,167.11,166.99,6.6881152]
[1752503181886,24.5481152,167.11,167.0,5.9863]
[1752503182083,24.5481152,167.11,166.99,6.6881152]
[1752503182476,24.5481152,167.11,167.01,5.9859]
[1752503182679,24.5481152,167.12,167.01,6.6881152]
[1752503182887,24.5481152,167.12,167.03,5.9853]
[1752503183084,24.5481152,167.12,167.01,6.6881152]
[1752503183286,24.5481152,167.1,166.98,6.6881152]
[1752503183791,6.6881152,167.08,166.98,6.6881152]
[1752503184088,24.5481152,167.08,166.98,6.6881152]
[1752503184496,24.5481152,167.08,166.96,6.6881152]
[1752503184690,24.5481152,167.08,166.97,5.9875]
[1752503185094,6.6881152,167.07,166.99,5.9868]
[1752503185292,6.6881152,167.07,166.96,6.6881152]
[1752503185590,24.5481152,167.07,166.96,6.6881152]
[1752503186098,196.0081152,167.07,166.96,6.6881152]
[1752503186297,6.6881152,167.05,166.94,6.6881152]
[1752503186490,6.6881152,167.05,166.93,6.6881152]
[1752503186889,6.6881152,167.03,166.93,6.6881152]
[1752503187098,6.6881152,167.03,166.91,523.6481152]
[1752503187292,6.6881152,167.03,166.89,128.05699442]
[1752503187293,6.6881152,166.99,166.89,6.6881152]
[1752503187500,6.6881152,167.01,166.89,6.6881152]
[1752503187691,6.6881152,167.01,166.93,5.989]
[1752503188198,6.6881152,167.02,166.85,4.90565909]
[1752503188395,6.6881152,167.02,166.91,6.6881152]
[1752503188598,6.6881152,167.06,166.95,6.6881152]
[1752503188899,6.6881152,167.06,166.97,5.9874]
[1752503189098,6.6881152,167.06,166.97,6.6881152]
[1752503189696,6.6881152,167.06,166.94,6.6881152]
[1752503189899,6.6881152,167.06,166.97,5.9876]
[1752503190098,6.6881152,167.06,166.94,6.6881152]
[1752503190994,17.86,167.05,166.98,5.9872]
[1752503191196,17.86,167.05,166.94,6.6881152]
[1752503191500,206.96,167.07,167.0,5.9862]
[1752503191696,206.96,167.07,166.98,6.6881152]
[1752503192003,189.1,167.07,167.02,5.9857]
[1752503192194,189.1,167.07,167.0,6.6881152]
[1752503192593,189.1,167.07,166.98,6.6881152]
[1752503193199,195.7881152,167.07,166.96,6.6881152]
[1752503193499,195.7881152,167.07,166.98,6.6881152]
[1752503193696,195.7881152,167.07,166.99,5.9867]
[1752503193904,213.6481152,167.07,166.98,6.6881152]
[1752503194106,6.6881152,167.05,166.96,6.6881152]
[1752503194397,6.6881152,167.05,166.97,5.9873]
[1752503194605,6.6881152,167.05,166.96,6.6881152]
[1752503194901,6.6881152,167.05,166.95,5.9882]
[1752503195103,6.6881152,167.05,166.94,6.6881152]
[1752503195403,6.6881152,167.03,166.93,5.9888]
[1752503195806,6.6881152,167.01,166.93,5.9888]
[1752503196103,6.6881152,167.01,166.86,4.90565909]
[1752503196300,6.6881152,167.01,166.91,6.6881152]
[1752503196500,6.6881152,167.01,166.93,5.9887]
[1752503196696,6.6881152,167.01,166.91,6.6881152]
[1752503196901,5.9878,166.97,166.91,6.6881152]
[1752503197102,5.9878,166.97,166.93,5.9887]
[1752503197302,5.9878,166.97,166.91,6.6881152]
[1752503197500,188.44,167.04,166.94,6.6881152]
[1752503198505,5.9859,167.02,166.96,6.6881152]
[1752503198809,188.44,167.04,166.98,6.6881152]
[1752503199001,6.6881152,167.07,166.96,6.6881152]
[1752503199303,213.0681152,167.07,166.98,5.987]
[1752503199606,6.6881152,167.05,166.96,5.9877]
[1752503199906,213.0681152,167.07,166.96,6.6881152]
[1752503200801,213.0681152,167.07,166.88,4.90565909]
[1752503200802,6.6881152,167.05,166.88,4.90565909]
[1752503201002,206.38,167.07,166.88,4.90565909]
[1752503201003,24.5481152,167.03,166.88,4.90565909]
[1752503201211,24.5481152,167.03,166.92,6.6881152]
[1752503201507,24.5481152,167.03,166.95,5.9881]
[1752503201704,188.52,167.07,166.94,6.6881152]
[1752503201904,188.52,167.07,166.97,6.6881152]
[1752503201905,17.86,167.06,166.97,6.6881152]
[1752503202204,517.12,167.09,166.99,6.6881152]
[1752503202509,517.12,167.09,166.87,13.21740695]
[1752503202510,517.12,167.09,167.01,12.6740152]
[1752503202707,517.12,167.09,167.0,6.6881152]
[1752503202907,534.98,167.09,167.0,6.6881152]
[1752503203107,534.98,167.09,167.03,5.9854]
[1752503203308,534.98,167.09,167.0,6.6881152]
[1752503203704,534.98,167.09,167.01,5.986]
[1752503204808,517.12,167.09,167.02,6.6881152]
[1752503204999,517.12,167.09,166.93,4.90565909]
[1752503205200,517.12,167.09,167.0,6.6881152]
[1752503205610,517.12,167.09,166.99,6.6881152]
[1752503205910,517.12,167.09,166.92,16.88425909]
[1752503206109,517.12,167.09,167.01,6.6881152]
[1752503206611,188.2,167.11,167.04,6.6881152]
[1752503207311,517.28,167.17,167.07,5.9839]
[1752503207312,523.9681152,167.17,167.07,5.9839]
[1752503207512,188.22,167.16,167.04,6.6881152]
[1752503207806,188.22,167.16,167.05,5.9844]
[1752503208012,188.22,167.16,167.04,6.6881152]
[1752503208212,188.22,167.16,167.06,6.6881152]
[1752503208707,188.22,167.16,167.01,6.6881152]
[1752503208708,6.6881152,167.15,167.01,6.6881152]
[1752503208912,6.6881152,167.12,167.01,12.6741152]
[1752503209108,188.12,167.11,167.01,6.6881152]
[1752503209311,6.6881152,167.1,166.99,6.6881152]
[1752503209708,6.6881152,167.1,167.01,6.6881152]
[1752503210113,188.12,167.11,167.03,6.6881152]
[1752503210315,188.12,167.11,167.05,6.6881152]
[1752503210512,188.12,167.11,167.07,5.9837]
[1752503210715,523.9681152,167.17,167.05,6.6881152]
[1752503210915,187.9,167.16,167.05,6.6881152]
[1752503211110,187.9,167.16,167.06,5.984]
[1752503211415,187.9,167.16,167.05,6.6881152]
[1752503211811,187.9,167.16,167.05,12.6726152]
[1752503212011,187.9,167.16,166.98,6.6881152]
[1752503212012,6.6881152,167.15,167.03,6.6881152]
[1752503212416,6.6881152,167.13,167.03,6.6881152]
[1752503212818,24.5481152,167.13,167.02,5.9858]
[1752503213018,24.5481152,167.13,167.01,6.6881152]
[1752503213225,6.6881152,167.11,167.01,6.6881152]
[1752503213426,187.7,167.1,167.01,6.6881152]
[1752503214523,187.7,167.1,166.98,4.90565909]
[1752503214524,187.7,167.1,166.99,6.6881152]
[1752503215031,6.6881152,167.07,166.96,11.59377429]
[1752503215230,6.6881152,167.07,166.97,4.90565909]
[1752503215418,6.6881152,167.07,166.96,4.90565909]
[1752503215419,24.5481152,167.07,166.96,4.90565909]
[1752503215831,24.5481152,167.07,166.96,10.89335909]
[1752503216326,24.5481152,167.07,166.96,5.9877]
[1752503216731,24.5481152,167.07,166.95,6.6881152]
[1752503216930,17.86,167.09,166.95,6.6881152]
[1752503217126,6.6881152,167.08,166.95,6.6881152]
[1752503217327,6.6881152,167.08,166.95,11.59377429]
[1752503217530,6.6881152,167.08,166.95,6.6881152]
[1752503217927,6.6881152,167.08,166.98,5.987]
[1752503218435,6.6881152,167.08,166.99,5.9868]
[1752503218734,6.6881152,167.08,166.97,6.6881152]
[1752503219031,194.3881152,167.1,167.01,5.986]
[1752503219236,194.3881152,167.1,166.99,6.6881152]
[1752503219532,6.6881152,167.1,166.99,12.6746152]
[1752503219732,193.8081152,167.1,166.99,6.6881152]
[1752503220035,6.6881152,167.1,166.99,6.6881152]
[1752503220234,193.7281152,167.1,166.99,6.6881152]
[1752503220631,6.6881152,167.08,166.97,17.58117429]
[1752503220828,6.6881152,167.08,166.97,6.6881152]
[1752503221028,6.6881152,167.05,166.96,4.90565909]
[1752503221233,6.6881152,167.02,166.94,4.90565909]
[1752503221537,6.6881152,167.0,166.94,4.90565909]
[1752503221829,6.6881152,167.01,166.91,11.43495084]
[1752503222030,6.6881152,167.01,166.91,10.89525909]
[1752503222230,187.08,167.02,166.91,4.90565909]
[1752503222435,187.08,167.02,166.91,11.59377429]
[1752503222739,187.02,167.04,166.95,6.6881152]
[1752503223133,193.7081152,167.04,166.93,6.6881152]
[1752503223334,193.7081152,167.04,166.91,6.6881152]
[1752503223532,6.6881152,167.01,166.91,6.6881152]
[1752503223736,6.6881152,167.03,166.9,5.01667586]
[1752503223939,6.6881152,167.03,166.92,6.6881152]
[1752503224134,5.988,166.96,166.92,11.70479106]
[1752503224336,6.6881152,167.03,166.92,11.70479106]
[1752503224635,5.9884,166.95,166.92,12.6774152]
[1752503224833,6.6881152,167.03,166.92,12.6774152]
[1752503224834,6.6881152,167.03,166.92,6.6881152]
[1752503225136,6.6881152,167.01,166.9,5.01667586]
[1752503225331,29.8309,167.03,166.89,14.85326106]
[1752503225536,6.60773905,167.06,166.95,6.6881152]
[1752503225537,198.71051589,167.06,166.95,6.6881152]
[1752503225940,192.02240069,167.06,166.95,6.6881152]
[1752503226139,198.71051589,167.06,166.95,6.6881152]
[1752503226538,209.88240069,167.06,166.91,5.01667586]
[1752503226733,216.57051589,167.06,166.91,5.01667586]
[1752503226938,5.02240069,167.05,166.96,6.6881152]
[1752503227339,211.5481152,167.06,166.93,6.6881152]
[1752503227539,6.6881152,167.03,166.92,5.01667586]
[1752503227939,6.6881152,167.03,166.91,11.70479106]
[1752503228238,6.6881152,167.01,166.91,6.6881152]
[1752503228839,24.5481152,167.03,166.91,12.6776152]
[1752503229035,24.5481152,167.03,166.91,6.6881152]
[1752503229439,24.5481152,167.03,166.93,6.6881152]
[1752503229745,24.5481152,167.03,166.89,8.16162905]
[1752503230044,6.6881152,167.01,166.91,6.6881152]
[1752503230238,6.6881152,167.01,166.89,3.14847]
[1752503230447,24.5481152,167.01,166.9,6.6881152]
[1752503230736,6.6881152,166.97,166.89,3.14847]
[1752503230938,186.62,166.96,166.89,3.14847]
[1752503231339,6.6881152,166.95,166.89,3.14847]
[1752503231739,6.6881152,166.93,166.89,3.14847]
[1752503233041,6.6881152,166.91,166.89,3.14847]
[1752503233242,24.57020583,166.9,166.78,5.01315905]
[1752503233445,6.71020583,166.83,166.74,5.01315905]
[1752503233642,186.48,166.82,166.72,6.71020583]
[1752503233843,6.71020583,166.81,166.69,6.71020583]
[1752503234043,6.71020583,166.81,166.7,6.71020583]
[1752503234247,6.71020583,166.81,166.71,5.9966]
[1752503234447,193.19020583,166.82,166.7,6.71020583]
[1752503234847,17.86,166.84,166.7,6.71020583]
[1752503235048,197.41184793,166.83,166.7,11.05184793]
[1752503235644,11.0554214,166.8,166.63,5.01315905]
[1752503235840,28.9154214,166.8,166.64,11.0554214]
[1752503236039,11.0554214,166.8,166.64,11.0554214]
[1752503236245,11.0554214,166.77,166.63,11.0554214]
[1752503236442,186.3,166.76,166.6,5.01315905]
[1752503236643,186.3,166.76,166.67,5.9982]
[1752503236846,186.28,166.78,166.65,11.0554214]
[1752503237048,11.0554214,166.8,166.59,518.52405742]
[1752503237049,11.0554214,166.8,166.68,11.0554214]
[1752503237250,11.0554214,166.83,166.68,11.0554214]
[1752503237548,186.2,166.82,166.64,5.01315905]
[1752503237747,11.0554214,166.81,166.69,11.0554214]
[1752503237944,11.05423838,166.81,166.67,11.05423838]
[1752503238147,11.05423838,166.81,166.62,5.01315905]
[1752503238347,11.05423838,166.78,166.65,11.05423838]
[1752503238749,11.05423838,166.75,166.64,5.9993]
[1752503238946,11.05423838,166.75,166.59,517.48]
[1752503238947,197.25423838,166.75,166.59,517.48]
[1752503239245,5.9982,166.68,166.6,11.05423838]
[1752503239449,197.25423838,166.75,166.61,11.05423838]
[1752503239644,197.25423838,166.75,166.59,517.48]
[1752503239846,197.25423838,166.75,166.63,5.9997]
[1752503240150,197.25423838,166.75,166.61,11.05423838]
[1752503240346,529.4645,166.85,166.64,11.05423838]
[1752503240347,11.05423838,166.78,166.64,11.05423838]
[1752503240545,529.4645,166.85,166.59,518.52418273]
[1752503240849,11.05423838,166.83,166.69,11.05423838]
[1752503241052,11.05195676,166.82,166.68,11.05195676]
[1752503241350,11.05195676,166.82,166.7,5.997]
[1752503241549,18.0,166.81,166.66,11.05195676]
[1752503241751,5.9965,166.73,166.68,5.9979]
[1752503242048,11.05195676,166.79,166.56,17.01765905]
[1752503242049,197.11195676,166.76,166.63,11.05195676]
[1752503242644,186.06,166.76,166.63,11.05195676]
[1752503242848,186.06,166.78,166.69,5.9974]
[1752503243048,11.05629371,166.8,166.69,11.05629371]
[1752503243443,11.05629371,166.8,166.66,11.05629371]
[1752503243645,11.05629371,166.83,166.69,11.05629371]
[1752503243841,186.06,166.82,166.69,11.05629371]
[1752503244241,186.06,166.82,166.68,11.05629371]
[1752503244445,204.06,166.82,166.68,11.05629371]
[1752503244647,11.05629371,166.8,166.68,11.05629371]
[1752503245647,186.06,166.82,166.68,11.05629371]
[1752503245846,215.11629371,166.82,166.58,6.05735745]
[1752503246047,5.9959,166.74,166.69,5.9976]
[1752503246354,11.05629371,166.79,166.65,11.05629371]
[1752503246553,5.9966,166.72,166.65,11.05629371]
[1752503246847,11.05629371,166.79,166.65,11.05629371]
[1752503247248,5.9968,166.72,166.68,5.9978]
[1752503247553,11.05629371,166.79,166.67,11.05629371]
[1752503247554,18.0,166.79,166.67,11.05629371]
[1752503247752,5.9962,166.74,166.69,5.9974]
[1752503247951,18.0,166.79,166.67,11.05629371]
[1752503248354,5.997,166.71,166.67,17.05439371]
[1752503248553,29.05629371,166.77,166.63,11.05629371]
[1752503248744,5.9977,166.69,166.63,11.05629371]
[1752503249253,29.05629371,166.77,166.63,11.05629371]
[1752503249651,18.0,166.77,166.63,11.05629371]
[1752503250347,29.05629371,166.75,166.63,11.05629371]
[1752503250557,5.999,166.66,166.63,11.05629371]
[1752503250853,203.64,166.72,166.49,17.02235905]
[1752503251151,5.999,166.66,166.57,11.05629371]
[1752503251359,703.76,166.72,166.57,11.05629371]
[1752503251547,5.9979,166.69,166.65,5.999]
[1752503251855,518.12,166.8,166.66,11.05629371]
[1752503252051,5.9965,166.73,166.7,11.05629371]
[1752503252251,518.12,166.8,166.59,185.64]
[1752503252756,11.05629371,166.78,166.64,11.05629371]
[1752503253156,11.05629371,166.78,166.65,5.9991]
[1752503253361,11.05629371,166.78,166.64,11.05629371]
[1752503253547,11.05629371,166.75,166.61,11.05629371]
[1752503253751,185.6,166.74,166.61,17.05669371]
[1752503253948,11.05629371,166.72,166.58,529.17629371]
[1752503254157,11.05629371,166.72,166.58,17.05779371]
[1752503254348,11.05629371,166.72,166.58,11.05629371]
[1752503254854,185.6,166.74,166.61,11.05629371]
[1752503255451,185.6,166.74,166.53,11.05629371]
[1752503255657,185.6,166.74,166.61,11.05629371]
[1752503255861,185.6,166.74,166.62,11.05629371]
[1752503256053,11.05629371,166.76,166.62,11.05629371]
[1752503256262,11.05629371,166.76,166.65,11.05629371]
[1752503256461,11.05629371,166.76,166.61,11.05629371]
[1752503256757,185.5,166.77,166.61,11.05629371]
[1752503256758,11.05629371,166.73,166.61,11.05629371]
[1752503256949,203.5,166.77,166.59,11.05629371]
[1752503257148,11.05629371,166.73,166.59,11.05629371]
[1752503257957,11.05629371,166.73,166.53,185.5]
[1752503258163,11.05629371,166.73,166.59,11.05629371]
[1752503258355,6.0008,166.61,166.57,6.0017]
[1752503258561,185.5,166.68,166.53,185.5]
[1752503258858,6.0008,166.61,166.57,6.0017]
[1752503259055,185.5,166.68,166.54,11.05629371]
[1752503259361,185.5,166.68,166.55,11.05629371]
[1752503259865,11.05629371,166.67,166.54,11.05629371]
[1752503260062,185.5,166.68,166.54,11.05629371]
[1752503260464,5.9988,166.66,166.62,5.9999]
[1752503260656,518.22,166.7,166.6,11.05629371]
[1752503260859,185.34,166.72,166.63,11.05629371]
[1752503261457,185.34,166.72,166.6,11.05629371]
[1752503261866,11.05629371,166.72,166.6,11.05629371]
[1752503262059,184.33629371,166.72,166.6,11.05629371]
[1752503262259,184.33629371,166.72,166.59,6.001]
[1752503262460,184.33629371,166.72,166.57,11.05629371]
[1752503262660,184.33629371,166.72,166.59,6.001]
[1752503262865,11.05629371,166.72,166.57,11.05629371]
[1752503263061,11.05629371,166.69,166.57,11.05629371]
[1752503263865,11.05629371,166.69,166.58,6.0015]
[1752503264166,11.05629371,166.69,166.55,11.05629371]
[1752503264466,11.05629371,166.69,166.57,6.0017]
[1752503264657,185.1,166.71,166.53,185.36]
[1752503264863,185.1,166.71,166.61,11.05629371]
[1752503265262,185.1,166.71,166.61,6.0003]
[1752503265566,185.1,166.71,166.6,11.05629371]
[1752503265961,185.1,166.71,166.63,5.9997]
[1752503266265,185.1,166.71,166.6,11.05629371]
[1752503266461,529.37629371,166.74,166.53,11.05629371]
[1752503266462,518.32,166.74,166.66,11.05629371]
[1752503266660,185.02,166.79,166.66,11.05629371]
[1752503267063,3.89846994,166.78,166.67,5.9983]
[1752503267262,3.89846994,166.78,166.64,11.05629371]
[1752503267467,3.89846994,166.78,166.68,5.9977]
[1752503268265,3.89846994,166.78,166.67,11.05629371]
[1752503268467,185.02,166.79,166.66,11.05629371]
[1752503269065,184.9,166.81,166.71,5.9969]
[1752503269268,184.9,166.81,166.69,11.05629371]
[1752503269768,184.9,166.81,166.72,11.05629371]
[1752503270064,184.9,166.81,166.69,11.05629371]
[1752503270365,184.9,166.81,166.61,5.01315905]
[1752503270366,184.9,166.81,166.68,11.05629371]
[1752503270563,184.9,166.81,166.6,518.34]
[1752503270564,202.9,166.81,166.67,11.05629371]
[1752503270759,11.05629371,166.8,166.67,11.05629371]
[1752503270960,11.05629371,166.8,166.66,11.05629371]
[1752503271967,11.05629371,166.77,166.66,11.05629371]
[1752503272168,11.05629371,166.77,166.63,11.05629371]
[1752503272369,11.05629371,166.74,166.6,535.39689371]
[1752503272570,184.64,166.73,166.6,535.39689371]
[1752503272757,184.64,166.73,166.6,529.39629371]
[1752503272963,184.64,166.73,166.59,11.05629371]
[1752503272964,11.05629371,166.71,166.59,11.05629371]
[1752503273763,11.05629371,166.72,166.59,11.05629371]
[1752503274071,11.05629371,166.71,166.59,11.05629371]
[1752503274573,11.05629371,166.71,166.59,17.05739371]
[1752503274771,11.05629371,166.71,166.59,11.05629371]
[1752503274961,195.69629371,166.73,166.6,6.0006]
[1752503275158,195.69629371,166.73,166.59,11.05629371]
[1752503276560,3.94226158,166.72,166.62,6.0]
[1752503276977,3.94226158,166.72,166.59,16.06331544]
[1752503277272,3.94226158,166.72,166.6,6.0008]
[1752503277461,3.94226158,166.72,166.59,11.05629371]
[1752503277663,3.94226158,166.72,166.62,6.0]
[1752503277876,3.94226158,166.72,166.59,16.06331544]
[1752503278372,3.94226158,166.72,166.6,5.00702173]
[1752503278564,3.94226158,166.72,166.61,5.00702173]
[1752503278766,3.94226158,166.72,166.61,6.0004]
[1752503279164,3.94226158,166.72,166.59,16.06331544]
[1752503279365,3.94226158,166.72,166.6,5.00702173]
[1752503279568,4.98299951,166.77,166.65,11.05629371]
[1752503279764,3.89550329,166.78,166.65,11.05629371]
[1752503280066,3.89550329,166.77,166.65,11.05629371]
[1752503280266,11.05629371,166.79,166.63,5.00702173]
[1752503280267,11.05629371,166.73,166.63,5.00702173]
[1752503280469,11.05629371,166.73,166.59,16.06331544]
[1752503280769,11.05629371,166.74,166.6,5.00702173]
[1752503280971,11.05629371,166.71,166.6,11.05629371]
[1752503281470,11.05629371,166.71,166.6,17.05689371]
[1752503281868,14.951797,166.74,166.61,6.0002]
[1752503282161,11.05629371,166.74,166.6,11.05629371]
[1752503282361,14.951797,166.74,166.61,6.0004]
[1752503282769,14.951797,166.74,166.6,11.05629371]
[1752503282965,6.72259498,166.71,166.6,12.72309498]
[1752503283370,6.72259498,166.71,166.58,5.00702173]
[1752503283665,6.72259498,166.69,166.59,6.72259498]
[1752503284362,6.72259498,166.71,166.59,11.72961671]
[1752503284564,6.72259498,166.71,166.59,6.72259498]
[1752503285266,6.72259498,166.69,166.58,5.00702173]
[1752503285471,6.72259498,166.67,166.57,5.00702173]
[1752503285772,6.72259498,166.67,166.56,17.73161671]
[1752503285972,6.72259498,166.67,166.56,6.72259498]
[1752503286270,6.72259498,166.65,166.54,5.00702173]
[1752503286468,6.72259498,166.65,166.53,11.72961671]
[1752503286665,6.72259498,166.63,166.53,11.72961671]
[1752503286864,6.72259498,166.63,166.53,5.00702173]
[1752503287067,6.72259498,166.63,166.52,518.28]
[1752503287264,6.72259498,166.64,166.53,6.72259498]
[1752503287870,4.98299951,166.68,166.57,6.72259498]
[1752503288071,11.70559449,166.68,166.57,6.72259498]
[1752503288370,6.72259498,166.66,166.56,6.72259498]
[1752503288568,6.72259498,166.66,166.53,5.00702173]
[1752503288775,6.72259498,166.66,166.55,6.72259498]
[1752503289476,6.72259498,166.64,166.53,12.72559498]
[1752503289680,6.72259498,166.64,166.53,6.72259498]
[1752503289972,4.98299951,166.68,166.55,6.72259498]
[1752503290175,6.72259498,166.67,166.58,6.72259498]
[1752503290572,6.72259498,166.67,166.56,6.72259498]
[1752503290873,6.72259498,166.67,166.58,6.72259498]
[1752503291074,6.72259498,166.69,166.6,6.0007]
[1752503291263,4.98299951,166.7,166.58,6.72259498]
[1752503291464,4.98299951,166.7,166.63,6.72259498]
[1752503291868,4.98299951,166.71,166.63,6.72259498]
[1752503292073,523.32299951,166.72,166.64,5.9992]
[1752503292273,523.32299951,166.72,166.58,183.9]
[1752503292473,4.98299951,166.71,166.63,6.72259498]
[1752503292669,523.32299951,166.72,166.66,5.9987]
[1752503292870,4.98299951,166.72,166.65,6.72259498]
[1752503293077,4.98299951,166.73,166.67,6.72259498]
[1752503293271,4.98299951,166.73,166.58,183.9]
[1752503293466,4.98299951,166.73,166.66,6.72259498]
[1752503294277,4.98299951,166.74,166.69,6.72259498]
[1752503294478,4.98299951,166.77,166.69,6.72259498]
[1752503294674,4.98299951,166.77,166.67,6.72259498]
[1752503294880,11.70559449,166.77,166.67,6.72259498]
[1752503295084,11.70559449,166.77,166.67,12.72089498]
[1752503295382,11.70559449,166.75,166.65,6.72259498]
[1752503295771,11.70559449,166.75,166.64,6.72259498]
[1752503296273,4.98299951,166.75,166.64,6.72259498]
[1752503296579,4.98299951,166.75,166.68,5.9977]
[1752503296778,6.60773905,166.78,166.67,6.72259498]
[1752503296779,4.98299951,166.76,166.67,6.72259498]
[1752503297076,4.98299951,166.76,166.68,5.9978]
[1752503297276,4.98299951,166.76,166.67,6.72259498]
[1752503297878,4.98299951,166.76,166.68,5.9977]
[1752503298087,11.70559449,166.78,166.68,5.9977]
[1752503298278,11.70559449,166.78,166.69,5.9975]
[1752503298680,11.70559449,166.78,166.67,6.72259498]
[1752503298886,6.72259498,166.76,166.65,6.72259498]
[1752503299285,6.72259498,166.74,166.64,5.9994]
[1752503299889,6.72259498,166.74,166.66,5.9986]
[1752503300085,6.72259498,166.74,166.63,6.72259498]
[1752503300286,22.98299951,166.77,166.64,6.72259498]
[1752503300489,6.72259498,166.76,166.64,6.72259498]
[1752503300989,11.70559449,166.76,166.64,6.72259498]
[1752503301382,4.98299951,166.75,166.67,5.9983]
[1752503301586,4.98299951,166.75,166.64,6.72259498]
[1752503301791,6.72259498,166.76,166.64,6.72259498]
[1752503301984,6.72259498,166.76,166.66,5.9985]
[1752503302185,6.72259498,166.76,166.64,6.72259498]
[1752503302380,6.72259498,166.76,166.65,5.9988]
[1752503302993,6.72259498,166.74,166.64,6.72259498]
[1752503303193,6.72259498,166.74,166.62,6.72259498]
[1752503303585,6.72259498,166.74,166.63,5.9995]
[1752503303990,6.72259498,166.74,166.62,6.72259498]
[1752503304383,6.72259498,166.72,166.62,5.9999]
[1752503304592,6.72259498,166.72,166.61,6.72259498]
[1752503305297,6.60773905,166.77,166.59,5.00702173]
[1752503305298,11.70559449,166.74,166.59,5.00702173]
[1752503305495,11.70559449,166.74,166.65,5.9989]
[1752503305690,6.72259498,166.74,166.64,6.72259498]
[1752503305887,4.98299951,166.73,166.62,6.72259498]
[1752503306194,6.72259498,166.72,166.62,6.72259498]
[1752503306895,4.98299951,166.75,166.64,6.72259498]
[1752503306896,6.72259498,166.74,166.64,6.72259498]
[1752503307394,4.98299951,166.76,166.68,6.72259498]
[1752503307693,4.98299951,166.76,166.7,5.9973]
[1752503307899,4.98299951,166.78,166.7,6.72259498]
[1752503308097,188.78299951,166.79,166.7,6.72259498]
[1752503308287,183.8,166.79,166.7,6.72259498]
[1752503308991,190.52259498,166.79,166.68,6.72259498]
[1752503309203,190.52259498,166.79,166.69,5.9975]
[1752503309701,190.52259498,166.79,166.69,5.9973]
[1752503310092,190.52259498,166.79,166.68,6.72259498]
[1752503310791,195.50559449,166.79,166.68,12.72039498]
[1752503310995,195.50559449,166.79,166.68,6.72259498]
[1752503311394,6.72259498,166.77,166.65,6.72259498]
[1752503311592,6.72259498,166.73,166.62,525.08259498]
[1752503311799,6.72259498,166.73,166.62,6.72259498]
[1752503312308,6.72259498,166.73,166.65,5.9989]
[1752503312496,6.72259498,166.73,166.64,6.72259498]
[1752503313802,6.72259498,166.71,166.59,6.72259498]
[1752503313993,6.72259498,166.71,166.6,6.0008]
[1752503314194,183.7,166.72,166.59,6.72259498]
[1752503314396,6.72259498,166.71,166.59,6.72259498]
[1752503314605,6.72259498,166.71,166.62,5.9999]
[1752503314805,6.72259498,166.71,166.59,6.72259498]
[1752503315701,4.98299951,166.75,166.65,6.72259498]
[1752503315907,4.98299951,166.77,166.69,6.72259498]
[1752503316102,195.40559449,166.79,166.71,5.9968]
[1752503316301,183.7,166.79,166.65,5.00702173]
[1752503316507,183.7,166.79,166.7,6.72259498]
[1752503317102,190.42259498,166.79,166.68,12.72039498]
[1752503317310,195.40559449,166.79,166.68,6.72259498]
[1752503318007,183.7,166.79,166.72,6.72259498]
[1752503318707,518.46,166.81,166.72,6.72259498]
[1752503319207,525.18259498,166.81,166.72,6.72259498]
[1752503319904,530.16559449,166.81,166.7,6.72259498]
[1752503320204,4.98299951,166.8,166.7,6.72259498]
[1752503320407,11.70559449,166.8,166.7,6.72259498]
[1752503321005,11.70559449,166.8,166.68,12.72029498]
[1752503321407,0.02,166.79,166.69,3.42]
[1752503321608,0.02,166.77,166.69,3.42]
[1752503322311,6.72259498,166.76,166.69,3.42]
[1752503323001,6.72259498,166.74,166.69,3.42]
[1752503324414,0.02,166.73,166.69,3.42]
[1752503324907,0.02,166.77,166.69,3.42]
[1752503325112,183.66,166.78,166.69,3.42]
[1752503325313,0.02,166.77,166.69,3.42]
[1752503325514,6.72259498,166.77,166.69,3.42]
[1752503325714,183.68,166.78,166.69,6.72259498]
[1752503325903,183.68,166.78,166.7,3.42]